Cogmind - Beta 13 @@@ ROGUE MODE // 2024.07.16 @ 11:17:49 Player: Sgt. SmokeWeed Result: Destroyed by Explosive Trap Performance ------------- Evolutions (0) 0 Regions Visited (2) 400 Robots Destroyed (17) 85 Value Destroyed (434) 434 Prototype IDs (0) 0 Alien Tech Used (0) 0 Bonus (0) 0 TOTAL SCORE: 919 Bonus ------- None Cogmind --------- Core Integrity 0/250 Matter 300/300 Energy 100/100 System Corruption 2% Temperature Cool (0) Movement Flying (37) Location -10/Mines Parts ------- > --- POWER (1) -------- (None) > --- PROPULSION (2) --- Flight Unit Flight Unit > --- UTILITY (2) ------ (None) > --- WEAPON (2) ------- (None) > --- INVENTORY (5) ---- Ion Engine Peak State ------------ > --- POWER ------------ Light Nuclear Core > --- PROPULSION ------- Aluminum Leg Aluminum Leg > --- UTILITY ---------- (None) > --- WEAPON ----------- Beam Cannon Assault Rifle > --- INVENTORY -------- Ion Engine [Rating: 7] Favorites ----------- Power Ion Engine Engine Ion Engine Power Core Light Nuclear Core Propulsion Aluminum Leg Leg Aluminum Leg Wheel Wheel Flight Unit Flight Unit Utility None Weapon Assault Rifle Energy Gun EM Pulse Gun Energy Cannon Beam Cannon Ballistic Gun Assault Rifle Build | -11 -10 -10 ------- Run | Yrd Mat Min Slots Evolved . | . . . Power . | . . . Propulsion . | . . . Utility . | . . . Weapon . | . . . Parts Attached 19 | 5 4 10 Power 3 | 1 1 1 Engine 2 | 1 . 1 Core 1 | . 1 . Reactor . | . . . Propulsion 12 | 2 2 8 Treads . | . . . Leg 6 | 2 2 2 Wheel 2 | . . 2 Hover . | . . . Flight 4 | . . 4 Utility . | . . . Device . | . . . Storage . | . . . Processor . | . . . Hackware . | . . . Protection . | . . . Artifact . | . . . Weapon 4 | 2 1 1 Energy Gun 1 | 1 . . Energy Cannon 1 | . 1 . Ballistic Gun 2 | 1 . 1 Ballistic Cannon . | . . . Launcher . | . . . Special Weapon . | . . . Impact Weapon . | . . . Slashing Weapon . | . . . Piercing Weapon . | . . . Special Melee Weapon . | . . . Unidentified Prototypes . | . . . Parts Lost 7 | . . 7 Power 2 | . . 2 Propulsion 2 | . . 2 Utility . | . . . Weapon 3 | . . 3 Highest Loss Streak 4 | . . 4 To Critical Strikes . | . . . Average Slot Usage (%) 57 | . 71 44 Engine 7 | . 11 4 Core 2 | . 2 2 Leg 22 | . 28 16 Wheel 2 | . . 4 Flight 1 | . . 3 Energy Cannon 7 | . 12 3 Ballistic Gun 11 | . 14 9 Naked Turns 15 | . . 15 Heaviest Build 10 | 9 10 10 Greatest Support 20 | 20 20 20 Greatest Overweight (x) 3 | . . 3 Average Overweight (x) . | . . . Largest Inventory Capacity 5 | 5 5 5 Average Capacity 5 | 5 5 5 Most Carried 1 | . 1 1 Average Carried . | . . 1 Final Capacity 5 | 5 5 5 Final Carried 1 | . 1 1 Class Distribution -------------------- 86% | Mutant 13% | Scavenger-Mutant Dominant Class ---------------- Mutant | -10/Materials Mutant | -10/Mines Resources | -11 -10 -10 ----------- Run | Yrd Mat Min Matter Collected 568 | 174 237 157 Remotely . | . . . Salvage Created 483 | . 338 145 Parts 37 | . 29 8 Haulers Intercepted . | . . . Recyclers Shooed 1 | . 1 . Parts Field Recycled . | . . . Retrieved Matter . | . . . Parts Self-Destructed . | . . . Prevented . | . . . Kills | -11 -10 -10 ------- Run | Yrd Mat Min Combat Hostiles Destroyed 15 | . 10 5 Guns 7 | . 3 4 Cannons 8 | . 7 1 Classes Destroyed 4 | . 4 . Operator 1 | . 1 . Watcher 1 | . 1 . Swarmer 6 | . 3 3 Grunt 9 | . 7 2 Best Kill Streak 4 | . 4 4 Combat Bots Only 4 | . 3 4 Max Kills in Single Turn 1 | . 1 1 Gunslinging . | . . . Exploded . | . . . Melee . | . . . Uniques/NPCs Destroyed . | . . . Combat | -11 -10 -10 -------- Run | Yrd Mat Min Hostile Shots Fired 110 | . 50 60 Missed 26 | . 14 12 Damage Taken 1048 | . 381 667 Core 268 | . 86 182 Absorbed by Shields . | . . . Core Remaining (%) 100 | 100 . . Volleys Fired 74 | . 44 30 Largest 2 | . 2 2 Hottest 80 | . 80 80 Shots Fired 128 | . 83 45 Gun 77 | . 47 30 Cannon 51 | . 36 15 Launcher . | . . . Special . | . . . Kinetic 74 | . 44 30 Thermal 51 | . 36 15 Explosive . | . . . Electromagnetic 3 | . 3 . Robot Hit Streak 8 | . 8 7 Robot Miss Streak 5 | . 5 4 Penetration Max . | . . . Secondary Targets . | . . . Shots Hit Robots 70 | . 43 27 Core Hits 28 | . 17 11 Critical Kills . | . . . Critical Parts Destroyed . | . . . Critical Strikes . | . . . Melee Attacks . | . . . Impact . | . . . Slashing . | . . . Piercing . | . . . Sneak Attacks . | . . . Combat Hostiles . | . . . Follow-up Attacks . | . . . Damage Inflicted 1010 | . 668 342 Guns 555 | . 354 201 Cannons 436 | . 295 141 Explosions . | . . . Melee . | . . . Ramming 19 | . 19 . Kinetic 525 | . 324 201 Thermal 436 | . 295 141 Explosive . | . . . Electromagnetic 30 | . 30 . Impact . | . . . Slashing . | . . . Piercing . | . . . Highest Corruption 2 | . 2 2 Average Corruption 2 | . 2 2 Corruption Purged . | . . . Corruption Blocked . | . . . Effects 12 | . 6 6 Message Errors 3 | . 1 2 Matter Fused 5 | . 2 3 Heat Flow Errors 2 | . 2 . Energy Discharges 1 | . . 1 Data Loss (major) 1 | . 1 . Overload Shots . | . . . Overflow Damage 12 | . 12 . Projectiles 12 | . 12 . Explosions . | . . . Melee . | . . . Knockbacks . | . . . Impact . | . . . Kinetic . | . . . Secondary . | . . . Self-Inflicted Damage . | . . . Shots . | . . . Rammed . | . . . Targets Rammed 6 | . 6 . Kicked 6 | . 6 . Crushed . | . . . Highest Temperature 290 | . 290 279 Average Temperature 116 | . 121 104 Received Heat Transfer 501 | . 186 315 Effects 4 | . 4 . Energy Bleed 2 | . 2 . Interference 2 | . 2 . Siege Activations . | . . . Robots Corrupted . | . . . Combat Hostiles . | . . . Parts Fried . | . . . Impact Corruptions . | . . . Robots Melted . | . . . Combat Hostiles . | . . . Parts Melted . | . . . Heat Transferred 925 | . 629 296 Parts Sabotaged . | . . . Parts Stolen . | . . . Parts Stripped . | . . . Power Chain Reactions . | . . . Alert | -11 -10 -10 ------- Run | Yrd Mat Min Peak Influence 331 | . 331 172 Initial 62 | . . 62 Average 150 | . 165 151 Maximum Alert Level 1 | . 1 . Low Security (%) 80 | 100 60 100 Level 1 19 | . 39 . Level 2 . | . . . Level 3 . | . . . Level 4 . | . . . Level 5 . | . . . High Security . | . . . Max Security . | . . . Squads Dispatched 3 | . 3 . Investigation 2 | . 2 . Extermination . | . . . Reinforcement 1 | . 1 . Assault . | . . . Garrison . | . . . Intercept . | . . . Searches Triggered . | . . . Construction Impeded . | . . . Haulers Reinforced . | . . . Active Scanning Responses . | . . . Cargo Convoy Interrupts . | . . . Stealth | -11 -10 -10 --------- Run | Yrd Mat Min Distress Signals 1 | . 1 . Communications Jammed . | . . . Distress Signals . | . . . Times Spotted 25 | . 14 11 Peak Tracking Total 5 | . 5 3 Tactical Retreats 3 | . 1 2 Traps | -11 -10 -10 ------- Run | Yrd Mat Min Traps Triggered 2 | . 2 . Indirectly . | . . . Trap Hack Attempts . | . . . Triggered . | . . . Disarmed . | . . . Reprogrammed . | . . . Reused . | . . . Traps Extracted . | . . . Installed . | . . . Triggered . | . . . Machines | -11 -10 -10 ---------- Run | Yrd Mat Min Machines Disabled 1 | . . 1 Max in Single Turn 1 | . . 1 Machines Repaired . | . . . Machines Dismantled . | . . . Machines Sabotaged . | . . . Overloaded Fab Kills . | . . . Hacking | -11 -10 -10 --------- Run | Yrd Mat Min Machines Accessed 4 | . 3 1 Terminals 3 | . 3 . Fabricators . | . . . Repair Stations . | . . . Recycling Units . | . . . Scanalyzers . | . . . Garrison Access . | . . . Total Hacks 10 | . 9 1 Successful 2 | . 1 1 Failed 8 | . 8 . Catastrophic 1 | . 1 . Database Lockouts . | . . . Manual 8 | . 8 . Terminals 9 | . 9 . Fabricators . | . . . Repair Stations . | . . . Recycling Units . | . . . Scanalyzers . | . . . Garrison Access . | . . . Terminal Hacks 2 | . 1 1 Open Door 1 | . . 1 Branch Access Points 1 | . 1 . Fabricator Hacks . | . . . Repair Station Hacks . | . . . Recycling Unit Hacks . | . . . Scanalyzer . | . . . Garrison Access Hacks . | . . . Unauthorized Hacks . | . . . Terminals . | . . . Fabricators . | . . . Repair Stations . | . . . Recycling Units . | . . . Scanalyzers . | . . . Garrison Access . | . . . Data Cores Recovered . | . . . Used . | . . . Hacking Detections 3 | . 3 . Full Trace Events 2 | . 2 . Feedback Events . | . . . Feedback Blocked . | . . . Robot Schematics Acquired . | . . . Robots Built . | . . . Authchips . | . . . Time . | . . . Total Robot Build Rating . | . . . Part Schematics Acquired . | . . . Parts Built . | . . . Authchips . | . . . Time . | . . . Total Part Build Rating . | . . . Parts Repaired . | . . . Time . | . . . Parts Recycled . | . . . Recycled Matter . | . . . Retrieved Matter . | . . . Retrieved Components . | . . . Parts Scanalyzed . | . . . Part Schematics Acquired . | . . . Parts Damaged . | . . . Bothacking | -11 -10 -10 ------------ Run | Yrd Mat Min Used RIF Installer . | . . . Robots Hacked . | . . . Non-combat . | . . . Combat . | . . . Robot Hacks Applied . | . . . Relay Couplers Released . | . . . Fabnet Peak Effective % . | . . . Robots Rewired . | . . . Allies Hacked . | . . . Hacks Repelled . | . . . Allies | -11 -10 -10 -------- Run | Yrd Mat Min Total Allies 1 | . . 1 Largest Group 1 | . . 1 Highest-Rated Group 31 | . . 31 Highest-Rated Ally 31 | . . 31 Total Orders . | . . . Ally Attacks . | . . . Total Damage . | . . . Kills . | . . . Allies Corrupted . | . . . Allies Melted . | . . . Intel | -11 -10 -10 ------- Run | Yrd Mat Min Robot Analysis Total . | . . . Derelict Logs Recovered 1 | . . 1 Drone Launches . | . . . Drone Recoveries . | . . . Exploration | -11 -10 -10 ------------- Run | Yrd Mat Min Turns Passed 899 | 46 442 411 Spaces Moved 653 | 35 250 368 Core 46 | 4 . 42 Treads . | . . . Legs 432 | 31 250 151 Wheels 74 | . . 74 Hover . | . . . Flight 101 | . . 101 Fastest Speed 37 | 50 120 37 Average Speed 97 | 112 120 81 Slowest Speed 200 | 120 120 200 Overloaded Moves . | . . . Propulsion Burnouts . | . . . Robots Hopped 2 | . . 2 Cave-ins Triggered . | . . . Exploration Rate (%) 36 | 3 48 59 Regions Visited 2 Branch Regions 1 Pre-discovered Areas 1 | . . 1 Known Exits Taken 1 | . 1 . Unknown Exits Taken 1 | 1 . . Scrap Searched 3 | . . 3 Spaces Dug . | . . . Terrain Destroyed . | . . . Melee . | . . . Projectile . | . . . AOE . | . . . Terrain Rammed . | . . . Walls Destroyed . | . . . Machines Disabled . | . . . Actions | -11 -10 -10 --------- Run | Yrd Mat Min Total 779 | 39 307 433 Wait 22 | . 1 21 Move 647 | 34 249 364 Hop 2 | . . 2 Pick Up . | . . . Fast Attach 16 | 5 1 10 Attach . | . . . Detach . | . . . Swap 3 | . 3 . Drop 9 | . 3 6 Fire 74 | . 44 30 Melee . | . . . Ram . | . . . Kick 6 | . 6 . Crush . | . . . Escape Stasis . | . . . Rewire . | . . . Trap . | . . . Miscellaneous . | . . . Route ------- -11/Scrapyard -10/Materials (discovered 3 exits: [*Mat] / *Min x2) -10/Mines (discovered 2 exits: [*Mat x2]) History --------- Turn | Location | Event 14 | -11/Scrapyard | Discovered new exit (range 16) 47 | -11/Scrapyard | Entered Materials 253 | -10/Materials | Discovered new exit (range 7) 266 | -10/Materials | Identified exit to Mines 332 | -10/Materials | Build established: Mutant 489 | -10/Materials | Entered Mines 584 | -10/Mines | Core integrity fell below 50% 602 | -10/Mines | Lost 4 parts (1p1n2w) 739 | -10/Mines | Discovered new exit (range 7) 779 | -10/Mines | Core integrity fell below 20% 805 | -10/Mines | Lost 3 parts (1p1n1w) 843 | -10/Mines | Escorted by a lone wolf Derelict 863 | -10/Mines | Learned location of Storage (-9) 886 | -10/Mines | Discovered new exit (range 9) 891 | -10/Mines | Learned 8 Materials zone layouts 900 | -10/Mines | Met a Derelict who couldn't figure out how to use a Trap Extractor 900 | -10/Mines | Destroyed by Explosive Trap Last Messages --------------- Acquired Flight Unit. Acquired 20 matter. EXIT=FOUND Acquired derelict log, extracted data. Data stored: Materials zone layouts (x8). Searching scrap... Found Weapon Shielding. Found 20 Matter. Found Power Shielding. Found 27 Matter. Connecting with SHOP.Sys... >>Open Door Sealed Doors opened. 65-CT6(g): "So I found this thing but I have no idea how to use it. And who the hell trapped this place to begin with?!" 65-CT6(g): "I give up! Here you try, I'm outta here before something nasty happens..." Tosses Imp. Trap Extractor to the ground. 65-CT6(g) triggered Explosive Trap. An explosion rips through the floor. Map ----- +----------------------------------------------------+ | | | | | | | | | | | ??????????????????????????????????????????????? | | ??????????????????????????????????????????????? | | ??????????????????????????????????????????????? | | ????????????????????????????????######?#####??? | | ???????????????????????????????## ### ##?? | | ???????????????? ???????###### ### | | ??????????????## #??????# | | ?????????????## #?????# #### | | ????????????## #????# #### ##?? | | ????????????# #???# #??##### #?? | | ????????????# ##?# #??????## #?? | | ?????????????# ### #???????# #?? | | ?????????????????# %% ######??## ##?? | | ?????????????????## !! #???# ####??? | | ??????????????????## #### #### #???# #?????? | | ???????????????????## #??# #### ##### #?????? | | ?????????????????##### #### ## #?????? | | ????????????????##""## ## ####### ##?????? | | ????????????????#"/=! X #?????# #??????? | | ????????????????#"* ###?????# #??????? | | ????????????????#"=!g @ ##???????# #??????? | | ????????????????#"! ! ##????????# #??????? | | ????????????????##"" # ##?????????# #??????? | | ?????????????????#### ##??????????# #??????? | | ????????????????????## ##???????????# #??????? | | ?????????????????????# #????????????# #??????? | | ?????????????????????# #????????????# #??????? | | ?????????????????????# #????????????# #??????? | | ?????????????????????# #????????????# #??????? | | ?????????????????????# #????????????# #???#### | | ?????????????????????# #??????????### ##### # | | ?????????????????????# ?????????## | | ????????????????????? ????????## | | ??????????????????????k ????????# | | ?????????????????????? ???????# | | ?????????????????????? ???????# | | ????????????????????????????????# | | ????????????????????????????????## | | ?????????????????????????????????## | | ??????????????????????????????????#### ## | | ?????????????????????????????????????# ######## | | ?????????????????????????????????????# ???????? | | ?????????????????????????????????????# ???????? | | ????????????????????????????????????? ???????? | | ?????????????????????????????????????##???????? | +----------------------------------------------------+ Best States ------------- Heat Dissipation 25 Energy Generation 14 Energy Capacity 250 Matter Stores 300 Matter Capacity 300 Sight Range 16 Terrain Scan Density 10 Evasion (%) 62 Item Schematics ----------------- None Robot Schematics ------------------ None Fabricated ------------ Nothing Alien Tech Used ----------------- None Achievements -------------- None Challenges ------------ None Game ------ Seed ImpulseSpliceHumpback Manual? 0 Play Time 00:07:25 Cumulative 35.0 hours Start 2024.07.16 @ 11:10:29 End 2024.07.16 @ 11:17:49 Sessions 1 Manual Loads 0 Difficulty Rogue Special Mode None Game No. 78 Rogue 12 Adventurer 66 Explorer 0 Win Type - Total 0 Types 0/0/0/0/0/0/0/0/0 Lore% 27 Gallery% 30 Achievement% 29 Wizard Run 0 Options --------- Layout 0 ASCII 0 Keyboard 0 Movement Mouse Keybinds 0 Fullscreen 1 Font 24/Smallcaps Map View 76x50 Zoom Use 0% Tactical HUD 0 Map Filters NONE Filters NONE Steam 1 RUN: 05615749-d6ed-4906-bb01-808bef5bba97